fUST/lending_fUST_20241005
["ID","MTS","AMOUNT","RATE_DAILY","PERIOD"]
[339882210,1728121841501,-200.462216,0.0001643,2]
[339882211,1728121841514,-200.462216,0.0001643,2]
[339882212,1728121841525,-200.462216,0.0001643,2]
[339882213,1728121841537,-200.462216,0.0001643,2]
[339882214,1728121841550,-200.462216,0.0001643,2]
[339882215,1728121841561,-200.462216,0.0001643,2]
[339882216,1728121841571,-200.462216,0.0001643,2]
[339882217,1728121841581,-200.462216,0.0001643,2]
[339882218,1728121841591,-200.462216,0.0001643,2]
[339882219,1728121841601,-200.462216,0.0001643,2]
[339882220,1728121841611,-151.0,0.0001643,2]
[339882221,1728121841621,-151.0,0.0001643,2]
[339882222,1728121841631,-278.329225,0.0001643,2]
[339882223,1728121841641,-151.0,0.0001643,2]
[339882224,1728121841651,-151.0,0.0001643,2]
[339882225,1728121841661,-151.0,0.0001643,2]
[339882226,1728121841671,-151.0,0.0001643,2]
[339882227,1728121841682,-151.0,0.0001643,2]
[339882228,1728121841692,-151.0,0.0001643,2]
[339882229,1728121841702,-151.0,0.0001643,2]
[339882230,1728121841716,-151.0,0.0001643,2]
[339882231,1728121841729,-151.0,0.0001643,2]
[339882232,1728121841739,-151.0,0.0001643,2]
[339882233,1728121841751,-151.0,0.0001643,2]
[339882234,1728121841762,-151.0,0.0001643,2]
[339882235,1728121841773,-151.0,0.0001643,2]
[339882236,1728121841784,-151.0,0.0001643,2]
[339882237,1728121841794,-151.0,0.0001643,2]
[339882238,1728121841806,-151.0,0.0001643,2]
[339882239,1728121841817,-151.0,0.0001643,2]
[339882240,1728121841828,-151.0,0.0001643,2]
[339882241,1728121841842,-151.0,0.0001643,2]
[339882242,1728121841854,-151.0,0.0001643,2]
[339882243,1728121841865,-151.0,0.0001643,2]
[339882244,1728121841874,-151.0,0.0001643,2]
[339882245,1728121841885,-151.0,0.0001643,2]
[339882246,1728121841898,-151.0,0.0001643,2]
[339882247,1728121841909,-151.0,0.0001643,2]
[339882248,1728121841919,-151.0,0.0001643,2]
[339882249,1728121841929,-151.0,0.0001643,2]
[339882250,1728121841939,-151.0,0.0001643,2]
[339882251,1728121841949,-151.0,0.0001643,2]
[339882252,1728121841959,-151.0,0.0001643,2]
[339882253,1728121841969,-151.0,0.0001643,2]
[339882254,1728121841979,-151.0,0.0001643,2]
[339882255,1728121841989,-151.0,0.0001643,2]
[339882256,1728121841999,-151.0,0.0001643,2]
[339882257,1728121842010,-2354.540776,0.0001643,2]
[339882258,1728121842020,-1130.25206905,0.0001643,2]
[339882259,1728121842037,-1224.28870695,0.0001643,2]
[339882260,1728121842047,-2354.540776,0.0001643,2]
[339882261,1728121842057,-2354.540776,0.0001643,2]
[339882262,1728121842067,-2354.540776,0.0001643,2]
[339882263,1728121842078,-2354.540776,0.0001643,2]
[339882264,1728121842088,-2354.540776,0.0001643,2]
[339882265,1728121842098,-2354.540776,0.0001643,2]
[339882266,1728121842110,-2354.540776,0.0001643,2]
[339882267,1728121842121,-151.0,0.0001643,2]
[339882268,1728121842133,-2354.540776,0.0001643,2]
[339882269,1728121842143,-2354.540776,0.0001643,2]
[339882270,1728121842154,-151.0,0.0001643,2]
[339882271,1728121842165,-2354.540776,0.0001643,2]
[339882272,1728121842175,-151.0,0.0001643,2]
[339882273,1728121842185,-2354.540776,0.0001643,2]
[339882274,1728121842195,-151.0,0.0001643,2]
[339882275,1728121842204,-2354.540776,0.0001643,2]
[339882276,1728121842215,-151.0,0.0001643,2]
[339882277,1728121842225,-151.0,0.0001643,2]
[339882278,1728121842236,-255.103405,0.0001643,2]
[339882279,1728121842248,-255.103405,0.0001643,2]
[339882280,1728121842259,-255.103405,0.0001643,2]
[339882281,1728121842270,-255.103405,0.0001643,2]
[339882282,1728121842280,-255.103405,0.0001643,2]
[339882283,1728121842291,-255.103405,0.0001643,2]
[339882284,1728121842302,-255.103405,0.0001643,2]
[339882285,1728121842314,-255.103405,0.0001643,2]
[339882286,1728121842328,-255.103405,0.0001643,2]
[339882287,1728121842344,-255.103405,0.0001643,2]
[339882288,1728121842356,-255.103405,0.0001643,2]
[339882289,1728121842366,-255.103405,0.0001643,2]
[339882290,1728121842376,-366.36878,0.0001643,2]
[339882291,1728121842386,-366.36878,0.0001643,2]
[339882292,1728121842585,-366.36878,0.0001643,2]
[339882293,1728121842597,-366.36878,0.0001643,2]
[339882294,1728121842609,-366.36878,0.0001643,2]
[339882295,1728121842619,-366.36878,0.0001643,2]
[339882296,1728121842630,-366.36878,0.0001643,2]
[339882297,1728121842640,-366.36878,0.0001643,2]
[339882298,1728121842652,-366.36878,0.0001643,2]
[339882299,1728121842662,-366.36878,0.0001643,2]
[339882300,1728121842674,-366.36878,0.0001643,2]
[339882301,1728121842686,-366.36878,0.0001643,2]
[339882302,1728121842696,-151.0,0.0001643,2]
[339882303,1728121842706,-151.0,0.0001643,2]
[339882304,1728121842718,-151.0,0.0001643,2]
[339882305,1728121842729,-151.0,0.0001643,2]
[339882306,1728121842739,-151.0,0.0001643,2]
[339882307,1728121842749,-151.0,0.0001643,2]
[339882308,1728121842759,-539.16739,0.0001643,2]
[339882309,1728121842769,-539.16739,0.0001643,2]
[339882310,1728121842779,-539.16739,0.0001643,2]
[339882311,1728121842789,-539.16739,0.0001643,2]
[339882312,1728121842799,-539.16739,0.0001643,2]
[339882313,1728121842808,-539.16739,0.0001643,2]
[339882314,1728121842818,-539.16739,0.0001643,2]
[339882315,1728121842827,-539.16739,0.0001643,2]
[339882316,1728121842837,-539.16739,0.0001643,2]
[339882317,1728121842846,-539.16739,0.0001643,2]
[339882318,1728121842857,-539.16739,0.0001643,2]
[339882319,1728121842868,-539.16739,0.0001643,2]
[339882320,1728121842877,-151.0,0.0001643,2]
[339882321,1728121842887,-151.0,0.0001643,2]
[339882322,1728121842896,-278.50072,0.0001643,2]
[339882323,1728121842906,-578.131466,0.0001643,2]
[339882325,1728121842916,-578.131466,0.0001643,2]
[339882327,1728121842925,-578.131466,0.0001643,2]
[339882328,1728121842935,-578.131466,0.0001643,2]
[339882330,1728121842944,-578.131466,0.0001643,2]
[339882332,1728121842954,-578.131466,0.0001643,2]
[339882334,1728121842964,-578.131466,0.0001643,2]
[339882336,1728121842974,-578.131466,0.0001643,2]
[339882337,1728121842983,-578.131466,0.0001643,2]
[339882338,1728121842993,-578.131466,0.0001643,2]
[339882339,1728121843003,-578.131466,0.0001643,2]
[339882340,1728121843013,-578.131466,0.0001643,2]
[339882342,1728121843022,-151.0,0.0001643,2]
[339882343,1728121843032,-151.0,0.0001643,2]
[339882344,1728121843042,-151.0,0.0001643,2]
[339882345,1728121843052,-151.0,0.0001643,2]
[339882346,1728121843063,-208.080474,0.0001643,2]
[339882347,1728121843073,-26465.88868894,0.0001643,2]
[339882365,1728121843661,-9889.32653015,0.0001643,2]
[339882375,1728121909021,3792.44708788,0.00010209,2]
[339882376,1728121909049,6207.55291212,0.00010209,2]
[339882377,1728121914593,10000.0,0.00010209,2]
[339882378,1728121920003,10000.0,0.00010209,2]
[339882379,1728121925720,10000.0,0.00010209,2]
[339882380,1728121931026,10000.0,0.00010209,2]
[339882381,1728121936159,10000.0,0.00010209,2]
[339882382,1728121946611,1952.8,0.00010209,2]
[339882974,1728123038780,-1200.0,0.0001278,2]
[339882976,1728123038791,-1572.9109774,0.0001316,2]
[339882990,1728123040594,-1279.5430227,0.0001316,2]
[339882991,1728123040604,-244.916109,0.00013699,2]
[339882992,1728123040613,-300.0,0.00014023,2]
[339882993,1728123040623,-300.0,0.00014023,2]
[339882994,1728123040632,-24900.0,0.00014024,2]
[339882996,1728123040642,-1200.0,0.0001415,2]
[339882997,1728123040651,-15000.0,0.00015,2]
[339882998,1728123040660,-420.0,0.00015363,2]
[339882999,1728123040669,-192.05771998,0.0001542,2]
[339883000,1728123040679,-1200.0,0.0001552,2]
[339883001,1728123040688,-153.0,0.00015741,2]
[339883002,1728123040698,-153.0,0.00015973,2]
[339883003,1728123040707,-153.323223,0.00015973,2]
[339883006,1728123040893,-153.0,0.00015973,2]
[339883007,1728123040905,-153.0,0.00015973,2]
[339883008,1728123040914,-153.0,0.00015973,2]
[339883009,1728123040924,-153.0,0.00015973,2]
[339883010,1728123040933,-153.0,0.00015973,2]
[339883011,1728123040942,-153.0,0.00015973,2]
[339883012,1728123040952,-153.0,0.00015973,2]
[339883013,1728123040961,-209.5952082,0.00015973,2]
[339883014,1728123040971,-209.5952082,0.00015973,2]
[339883015,1728123040981,-209.5952082,0.00015973,2]
[339883016,1728123040990,-209.5952082,0.00015973,2]
[339883017,1728123040999,-209.5952082,0.00015973,2]
[339883018,1728123041010,-356.1910081,0.00015973,2]
[339883019,1728123041020,-2804.57628256,0.00016,2]
[339883020,1728123041032,-192.05771998,0.00016321,2]
[339883021,1728123041042,-1000.0,0.0001633,2]
[339883022,1728123041051,-6003.50350238,0.00016353,2]
[339883023,1728123041060,-191.96428964,0.00016378,2]
[339883024,1728123041069,-177.309,0.00016378,2]
[339883025,1728123041079,-9269.59203821,0.0001638,2]
[339883122,1728124064062,1332.66699983,0.0002,120]
[339883123,1728124139363,176.0,0.000192,120]
[339883160,1728124237865,-1300.0,0.0001278,2]
[339883161,1728124237880,-1480.0,0.000128,2]
[339883162,1728124237893,-3207.35678679,0.00014,4]
[339883163,1728124237909,-1300.0,0.0001415,2]
[339883164,1728124237923,-285.336745,0.00014588,2]
[339883165,1728124237936,-566.1211508,0.00014687,2]
[339883166,1728124237951,-153.0,0.00014756,2]
[339883167,1728124237965,-153.0,0.00014756,2]
[339883168,1728124237978,-171.521402,0.00015039,2]
[339883169,1728124237992,-171.521402,0.0001508,2]
[339883170,1728124238005,-171.521402,0.00015121,2]
[339883171,1728124238018,-171.521402,0.00015163,2]
[339883172,1728124238032,-171.521402,0.00015204,2]
[339883173,1728124238045,-171.521402,0.00015245,2]
[339883174,1728124238059,-171.521402,0.00015286,2]
[339883175,1728124238072,-171.521402,0.00015328,2]
[339883176,1728124238086,-171.521402,0.00015369,2]
[339883177,1728124238099,-300.0,0.00015407,2]
[339883179,1728124238113,-300.0,0.00015407,2]
[339883181,1728124238128,-171.521402,0.0001541,2]
[339883183,1728124238143,-171.521402,0.00015451,2]
[339883185,1728124238157,-171.521402,0.00015492,2]
[339883186,1728124238170,-1300.0,0.0001552,2]
[339883188,1728124238184,-171.521402,0.00015534,2]
[339883190,1728124238199,-171.521402,0.00015575,2]
[339883191,1728124238213,-171.521402,0.00015616,2]
[339883192,1728124238227,-171.521402,0.00015657,2]
[339883193,1728124238241,-171.521402,0.00015699,2]
[339883194,1728124238255,-171.521402,0.0001574,2]
[339883195,1728124238268,-171.521402,0.00015781,2]
[339883196,1728124238281,-171.521402,0.00015822,2]
[339883197,1728124238295,-387.564213,0.0001589,2]
[339883198,1728124238308,-153.0,0.0001589,2]
[339883199,1728124238321,-209.5952082,0.0001589,2]
[339883200,1728124238336,-209.5952082,0.0001589,2]
[339883201,1728124238350,-209.5952082,0.0001589,2]
[339883202,1728124238363,-209.5952082,0.0001589,2]
[339883203,1728124238377,-209.5952082,0.0001589,2]
[339883204,1728124238391,-209.5952082,0.0001589,2]
[339883205,1728124238406,-209.5952082,0.0001589,2]
[339883206,1728124238420,-209.5952082,0.0001589,2]
[339883207,1728124238436,-209.5952082,0.0001589,2]
[339883208,1728124238450,-7195.04478571,0.00015967,2]
[339883209,1728124238464,-153.0,0.00015973,2]
[339883210,1728124238476,-153.0,0.00015973,2]
[339883211,1728124238490,-153.0,0.00015973,2]
[339883212,1728124238504,-153.0,0.00015973,2]
[339883213,1728124238519,-153.0,0.00015973,2]
[339883214,1728124238534,-153.0,0.00015973,2]
[339883215,1728124238547,-209.5952082,0.00015973,2]
[339883216,1728124238563,-153.0,0.00015973,2]
[339883217,1728124238575,-209.5952082,0.00015973,2]
[339883218,1728124238589,-153.0,0.00015973,2]
[339883219,1728124238602,-209.5952082,0.00015973,2]
[339883220,1728124238615,-209.5952082,0.00015973,2]
[339883221,1728124238628,-209.5952082,0.00015973,2]
[339883222,1728124238642,-209.5952082,0.00015973,2]
[339883223,1728124238658,-209.5952082,0.00015973,2]
[339883224,1728124238672,-209.5952082,0.00015973,2]
[339883225,1728124238685,-209.5952082,0.00015973,2]
[339883226,1728124238699,-175.6520081,0.00015973,2]
[339883227,1728124238713,-4248.58484729,0.000161,2]
[339883228,1728124238727,-3234.88005608,0.00016147,2]
[339883229,1728124238741,-3385.5415974,0.00016148,2]
[339883230,1728124238753,-154.35054708,0.000162,2]
[339883231,1728124238763,-154.35054708,0.00016225,2]
[339883232,1728124238773,-154.35054708,0.0001625,2]
[339883233,1728124238783,-154.35054708,0.00016275,2]
[339883234,1728124238793,-281.59808242,0.000163,2]
[339883235,1728124238802,-5000.0,0.000163,2]
[339883236,1728124238812,-151.0,0.000163,2]
[339883237,1728124238821,-18510.4274533,0.000163,2]
[339883238,1728124238834,-920.13883923,0.000163,2]
[339883269,1728124239912,-2653.05905804,0.000163,2]
[339883360,1728125156954,1149.08946493,0.0002,120]
[339883415,1728125432034,-1000.0,0.00013876,2]
[339883450,1728125438188,-480.4233307,0.00014265,2]
[339883451,1728125438199,-300.0,0.00014331,2]
[339883452,1728125438210,-70.26107301,0.00014331,2]
[339883459,1728125440235,-229.73892699,0.00014331,2]
[339883460,1728125440244,-1647.85215965,0.00014332,2]
[339883461,1728125440256,-1504.12975499,0.00014332,2]
[339883479,1728125446076,-18727.22848916,0.00014332,2]
[339883480,1728125446086,-164.58219,0.00014753,2]
[339883481,1728125446095,-164.58219,0.00014794,2]
[339883482,1728125446105,-164.58219,0.00014834,2]
[339883483,1728125446114,-164.58219,0.00014875,2]
[339883484,1728125446124,-164.58219,0.00014915,2]
[339883485,1728125446133,-164.58219,0.00014955,2]
[339883486,1728125446143,-164.58219,0.00014996,2]
[339883487,1728125446152,-164.58219,0.00015036,2]
[339883488,1728125446163,-159.0803524,0.00015068,2]
[339883489,1728125446173,-164.58219,0.00015077,2]
[339883490,1728125446183,-164.58219,0.00015117,2]
[339883491,1728125446191,-164.58219,0.00015158,2]
[339883492,1728125446201,-164.58219,0.00015198,2]
[339883493,1728125446210,-165.25509,0.00015212,2]
[339883494,1728125446219,-165.25509,0.0001522,2]
[339883495,1728125446237,-165.25509,0.00015228,2]
[339883496,1728125446251,-165.25509,0.00015237,2]
[339883497,1728125446262,-164.58219,0.00015239,2]
[339883498,1728125446271,-165.25509,0.00015245,2]
[339883499,1728125446281,-1000.0,0.00015246,2]
[339883500,1728125446291,-165.25509,0.00015254,2]
[339883501,1728125446301,-165.25509,0.00015262,2]
[339883502,1728125446310,-165.25509,0.00015271,2]
[339883503,1728125446319,-165.25509,0.00015279,2]
[339883504,1728125446329,-108.9026872,0.00015279,2]
[339883590,1728126632326,-173.49535,0.00014617,2]
[339883592,1728126632341,-173.49535,0.00014712,2]
[339883596,1728126632356,-157.786333,0.00014781,2]
[339883599,1728126632370,-157.786333,0.00014793,2]
[339883602,1728126632383,-157.786333,0.00014806,2]
[339883604,1728126632397,-173.49535,0.00014807,2]
[339883605,1728126632412,-157.786333,0.00014818,2]
[339883606,1728126632426,-157.786333,0.0001483,2]
[339883607,1728126632438,-157.786333,0.00014843,2]
[339883608,1728126632451,-75.87781025,0.00014855,2]
[339883758,1728126638418,-81.90852275,0.00014855,2]
[339883759,1728126638429,-6236.8361091,0.00014863,2]
[339883760,1728126638440,-173.49535,0.00014902,2]
[339883761,1728126638451,-900.0,0.00014972,2]
[339883762,1728126638461,-173.49535,0.00014997,2]
[339883763,1728126638470,-173.49535,0.00015093,2]
[339883764,1728126638479,-173.49535,0.00015188,2]
[339883765,1728126638489,-300.0,0.00015283,2]
[339883766,1728126638498,-173.49535,0.00015283,2]
[339883767,1728126638507,-300.0,0.00015284,2]
[339883768,1728126638516,-165.25509,0.00015288,2]
[339883770,1728126638528,-153.0,0.0001537,2]
[339883772,1728126638539,-153.0,0.0001537,2]
[339883774,1728126638549,-153.0,0.0001537,2]
[339883776,1728126638559,-153.0,0.0001537,2]
[339883778,1728126638569,-153.0,0.0001537,2]
[339883780,1728126638579,-168.2260285,0.0001537,2]
[339883782,1728126638589,-173.49535,0.00015378,2]
[339883785,1728126638602,-1000.0,0.00016,16]
[339883787,1728126638613,-5000.0,0.00016,2]
[339883789,1728126638627,-221.2597809,0.000162,2]
[339883791,1728126638636,-154.35054708,0.00016209,2]
[339883794,1728126638650,-1223.91931776,0.00016209,2]
[339883889,1728126640306,-65773.85114224,0.00016209,2]
[339883890,1728126640317,-4291.05987779,0.0001621,2]
[339883892,1728126640327,-11984.42019876,0.0001622,2]
[339883894,1728126640340,-187.73205494,0.0001622,2]
[339883896,1728126640350,-7147.44447136,0.0001622,2]
[339883926,1728126643587,-1755.6565995,0.00016209,2]
[339883927,1728126643599,-1028.9275,0.00016209,2]
[339883928,1728126643610,-319.06112074,0.00016209,2]
[339883999,1728127832514,-213.47088552,0.000123,2]
[339884001,1728127832528,-500.0,0.00013317,2]
[339884003,1728127832537,-85.64858994,0.00014018,2]
[339884112,1728127843594,-414.35141006,0.00014018,2]
[339884113,1728127843605,-500.0,0.00014756,2]
[339884114,1728127843615,-2298.611872,0.00014928,2]
[339884115,1728127843624,-700.0,0.00014972,2]
[339884116,1728127843633,-500.0,0.00015533,2]
[339884117,1728127843642,-300.0,0.00015599,2]
[339884118,1728127843652,-300.0,0.00015599,2]
[339884119,1728127843662,-153.0,0.000156,2]
[339884120,1728127843671,-153.323223,0.000156,2]
[339884121,1728127843680,-153.0,0.000156,2]
[339884122,1728127843691,-209.5952082,0.000156,2]
[339884123,1728127843701,-153.0,0.000156,2]
[339884124,1728127843711,-209.5952082,0.000156,2]
[339884125,1728127843720,-153.0,0.000156,2]
[339884126,1728127843730,-153.0,0.000156,2]
[339884127,1728127843739,-209.5952082,0.000156,2]
[339884128,1728127843749,-153.0,0.000156,2]
[339884129,1728127843759,-209.5952082,0.000156,2]
[339884130,1728127843768,-153.0,0.000156,2]
[339884131,1728127843777,-209.5952082,0.000156,2]
[339884132,1728127843786,-153.0,0.000156,2]
[339884133,1728127843795,-356.1910081,0.000156,2]
[339884134,1728127843805,-153.0,0.000156,2]
[339884135,1728127843815,-2420.66844101,0.0001612,2]
[339884257,1728129043689,-500.0,0.00014557,2]
[339884258,1728129043700,-600.0,0.00014972,2]
[339884259,1728129043711,-469.40000004,0.00015324,2]
[339884356,1728130237748,-300.0,0.00014206,2]
[339884357,1728130237758,-300.0,0.00014206,2]
[339884358,1728130237768,-12477.89678214,0.00014207,2]
[339884359,1728130237779,-5986.6567623,0.00014208,2]
[339884360,1728130237789,-1168.9282764,0.00014443,2]
[339884361,1728130237799,-520.58372453,0.00014836,2]
[339884362,1728130237810,-1606.83264544,0.00014836,2]
[339884363,1728130237825,-3310.84238111,0.00014836,2]
[339884369,1728130242718,-5022.68690361,0.00014206,2]
[339884370,1728130242728,-2150.26901783,0.00014836,2]
[339884371,1728130242738,-600.0,0.00014972,2]
[339884372,1728130242760,-30.59999996,0.00015324,2]
[339884373,1728130242771,-420.0,0.0001556,2]
[339884374,1728130242781,-300.0,0.00015626,2]
[339884375,1728130242791,-151.0,0.00015748,2]
[339884376,1728130242802,-151.0,0.00015748,2]
[339884377,1728130242814,-151.0,0.00015848,2]
[339884378,1728130242825,-151.0,0.00015848,2]
[339884379,1728130242837,-151.0,0.00015848,2]
[339884380,1728130242847,-151.0,0.00015848,2]
[339884381,1728130242858,-151.0,0.00015848,2]
[339884382,1728130242868,-151.0,0.00015848,2]
[339884383,1728130242881,-217.790275,0.00015848,2]
[339884384,1728130242892,-151.0,0.00015848,2]
[339884385,1728130242903,-151.0,0.00015848,2]
[339884386,1728130242916,-151.0,0.00015848,2]
[339884387,1728130242926,-151.0,0.00015848,2]
[339884388,1728130242936,-173.65,0.00015848,2]
[339884389,1728130242946,-173.65,0.00015848,2]
[339884390,1728130242957,-1007.40882,0.00015848,2]
[339884391,1728130242967,-298.971818,0.00015848,2]
[339884392,1728130242977,-298.971818,0.00015848,2]
[339884393,1728130242987,-320.447917,0.00015848,2]
[339884394,1728130242997,-151.0,0.00015848,2]
[339884395,1728130243007,-151.0,0.00015848,2]
[339884396,1728130243018,-320.447917,0.00015848,2]
[339884397,1728130243028,-151.0,0.00015848,2]
[339884398,1728130243038,-151.0,0.00015848,2]
[339884399,1728130243048,-151.0,0.00015848,2]
[339884400,1728130243058,-231.252586,0.00015848,2]
[339884401,1728130243069,-151.0,0.00015848,2]
[339884402,1728130243079,-231.252586,0.00015848,2]
[339884403,1728130243091,-151.0,0.00015848,2]
[339884404,1728130243102,-151.0,0.00015848,2]
[339884405,1728130243112,-161.241968,0.00015848,2]
[339884406,1728130243122,-161.241968,0.00015848,2]
[339884407,1728130243133,-151.720241,0.00015848,2]
[339884408,1728130243143,-151.0,0.00015848,2]
[339884409,1728130243153,-151.0,0.00015848,2]
[339884410,1728130243163,-151.0,0.00015848,2]
[339884411,1728130243173,-215.666956,0.00015848,2]
[339884412,1728130243184,-215.666956,0.00015848,2]
[339884413,1728130243194,-215.666956,0.00015848,2]
[339884414,1728130243204,-215.666956,0.00015848,2]
[339884415,1728130243214,-171.621609,0.00015848,2]
[339884416,1728130243223,-171.621609,0.00015848,2]
[339884417,1728130243234,-171.621609,0.00015848,2]
[339884418,1728130243245,-274.76559,0.00015848,2]
[339884419,1728130243255,-274.76559,0.00015848,2]
[339884420,1728130243265,-171.621609,0.00015848,2]
[339884421,1728130243275,-274.76559,0.00015848,2]
[339884422,1728130243285,-274.76559,0.00015848,2]
[339884423,1728130243296,-688.448053,0.00015848,2]
[339884424,1728130243306,-688.448053,0.00015848,2]
[339884425,1728130243316,-688.448053,0.00015848,2]
[339884426,1728130243327,-688.448053,0.00015848,2]
[339884427,1728130243342,-234.310352,0.00015848,2]
[339884428,1728130243352,-706.362233,0.00015848,2]
[339884429,1728130243362,-706.362233,0.00015848,2]
[339884430,1728130243376,-151.0,0.00015848,2]
[339884431,1728130243386,-234.310352,0.00015848,2]
[339884432,1728130243396,-706.362233,0.00015848,2]
[339884433,1728130243406,-706.362233,0.00015848,2]
[339884434,1728130243416,-225.406285,0.00015848,2]
[339884435,1728130243426,-225.406285,0.00015848,2]
[339884436,1728130243436,-225.406285,0.00015848,2]
[339884437,1728130243446,-225.406285,0.00015848,2]
[339884438,1728130243456,-151.0,0.00015848,2]
[339884439,1728130243466,-151.0,0.00015848,2]
[339884440,1728130243476,-187.461276,0.00015848,2]
[339884441,1728130243486,-1000.0,0.00015889,2]
[339884442,1728130243496,-1024.40251603,0.00015898,2]
[339884443,1728130243506,-151.0,0.00015898,2]
[339884444,1728130243516,-306.0,0.000159,2]
[339884445,1728130243526,-1918.747892,0.000159,2]
[339884446,1728130243536,-151.0,0.000159,2]
[339884447,1728130243547,-1918.747892,0.000159,2]
[339884448,1728130243557,-294.168626,0.000159,2]
[339884449,1728130243567,-294.168626,0.000159,2]
[339884450,1728130243577,-151.0,0.000159,2]
[339884451,1728130243588,-151.0,0.000159,2]
[339884452,1728130243598,-151.0,0.000159,2]
[339884453,1728130243608,-151.0,0.000159,2]
[339884454,1728130243618,-151.0,0.000159,2]
[339884455,1728130243629,-173.65,0.000159,2]
[339884456,1728130243639,-173.65,0.000159,2]
[339884457,1728130243652,-173.65,0.000159,2]
[339884458,1728130243663,-173.65,0.000159,2]
[339884459,1728130243673,-1007.40882,0.000159,2]
[339884460,1728130243683,-1007.40882,0.000159,2]
[339884461,1728130243693,-298.971818,0.000159,2]
[339884462,1728130243703,-298.971818,0.000159,2]
[339884463,1728130243713,-298.971818,0.000159,2]
[339884464,1728130243723,-298.971818,0.000159,2]
[339884465,1728130243733,-320.447917,0.000159,2]
[339884466,1728130243743,-320.447917,0.000159,2]
[339884467,1728130243753,-151.0,0.000159,2]
[339884468,1728130243764,-151.0,0.000159,2]
[339884469,1728130243774,-320.447917,0.000159,2]
[339884470,1728130243784,-320.447917,0.000159,2]
[339884471,1728130243795,-151.0,0.000159,2]
[339884472,1728130243807,-151.0,0.000159,2]
[339884473,1728130243821,-151.0,0.000159,2]
[339884474,1728130243835,-151.0,0.000159,2]
[339884475,1728130243846,-151.0,0.000159,2]
[339884476,1728130243858,-151.0,0.000159,2]
[339884477,1728130243868,-231.252586,0.000159,2]
[339884478,1728130243880,-231.252586,0.000159,2]
[339884479,1728130243893,-151.0,0.000159,2]
[339884480,1728130243903,-151.0,0.000159,2]
[339884481,1728130243914,-231.252586,0.000159,2]
[339884482,1728130243924,-231.252586,0.000159,2]
[339884483,1728130243934,-151.0,0.000159,2]
[339884484,1728130243946,-151.0,0.000159,2]
[339884485,1728130243956,-151.0,0.000159,2]
[339884486,1728130243966,-151.0,0.000159,2]
[339884487,1728130243976,-161.241968,0.000159,2]
[339884488,1728130243986,-161.241968,0.000159,2]
[339884489,1728130243996,-161.241968,0.000159,2]
[339884490,1728130244006,-161.241968,0.000159,2]
[339884491,1728130244016,-151.0,0.000159,2]
[339884492,1728130244026,-151.0,0.000159,2]
[339884493,1728130244035,-151.0,0.000159,2]
[339884494,1728130244045,-151.0,0.000159,2]
[339884495,1728130244056,-151.0,0.000159,2]
[339884496,1728130244066,-151.0,0.000159,2]
[339884497,1728130244075,-151.0,0.000159,2]
[339884498,1728130244085,-151.0,0.000159,2]
[339884499,1728130244096,-215.666956,0.000159,2]
[339884500,1728130244106,-215.666956,0.000159,2]
[339884501,1728130244116,-215.666956,0.000159,2]
[339884502,1728130244127,-215.666956,0.000159,2]
[339884503,1728130244137,-215.666956,0.000159,2]
[339884504,1728130244147,-215.666956,0.000159,2]